[Event "*** Titled Tuesday Blitz"]
[Site "Chess.com"]
[Date "2020.04.21"]
[Round "3"]
[White "adricalderon8"]
[Black "tan275"]
[Result "1-0"]
[WhiteElo "2421"]
[BlackElo "2149"]
[TimeControl "180+1"]
[EndTime "10:26:35 PDT"]
[Termination "adricalderon8 won by resignation"]

1. e4 {[%clk 0:03:00.9]} 1... c6 {[%clk 0:02:54.6]} 2. Nf3 {[%clk 0:02:58.9]}
2... d5 {[%clk 0:02:54.9]} 3. Nc3 {[%clk 0:02:59.7]} 3... Nf6 {[%clk 0:02:54.9]}
4. e5 {[%clk 0:02:57.3]} 4... Ne4 {[%clk 0:02:55.1]} 5. d4 {[%clk 0:02:58.2]}
5... Nxc3 {[%clk 0:02:53.5]} 6. bxc3 {[%clk 0:02:57.8]} 6... c5 {[%clk 0:02:54]}
7. Bb5+ {[%clk 0:02:49]} 7... Bd7 {[%clk 0:02:41.6]} 8. Qe2 {[%clk 0:02:46.7]}
8... e6 {[%clk 0:02:37.1]} 9. O-O {[%clk 0:02:45.2]} 9... Bxb5 {[%clk
0:02:29.4]} 10. Qxb5+ {[%clk 0:02:44.7]} 10... Qd7 {[%clk 0:02:30]} 11. Qxd7+
{[%clk 0:02:42.4]} 11... Nxd7 {[%clk 0:02:29.6]} 12. Rb1 {[%clk 0:02:43]} 12...
b6 {[%clk 0:02:25.2]} 13. Ba3 {[%clk 0:02:32.5]} 13... Be7 {[%clk 0:02:19.9]}
14. Nd2 {[%clk 0:02:29.8]} 14... cxd4 {[%clk 0:02:14.9]} 15. Bxe7 {[%clk
0:02:28.5]} 15... Kxe7 {[%clk 0:02:15.8]} 16. cxd4 {[%clk 0:02:25.9]} 16... Rhc8
{[%clk 0:02:16.3]} 17. Rfc1 {[%clk 0:02:24.4]} 17... Rc3 {[%clk 0:02:12.2]} 18.
Kf1 {[%clk 0:02:15.5]} 18... Rac8 {[%clk 0:02:10.5]} 19. Rb2 {[%clk 0:02:14.7]}
19... f6 {[%clk 0:02:06.8]} 20. f4 {[%clk 0:02:14.5]} 20... a6 {[%clk
0:01:47.6]} 21. Nb1 {[%clk 0:02:13.7]} 21... R3c4 {[%clk 0:01:45.2]} 22. c3
{[%clk 0:02:13.9]} 22... b5 {[%clk 0:01:44.4]} 23. Ke2 {[%clk 0:02:13.5]} 23...
Nb6 {[%clk 0:01:38.3]} 24. Kd3 {[%clk 0:02:10.9]} 24... fxe5 {[%clk 0:01:22.6]}
25. fxe5 {[%clk 0:02:09.9]} 25... Na4 {[%clk 0:00:39.6]} 26. Rf2 {[%clk
0:02:08.4]} 26... b4 {[%clk 0:00:27.8]} 27. Rcf1 {[%clk 0:02:06.7]} 27... Kd7
{[%clk 0:00:25.8]} 28. Rf7+ {[%clk 0:02:04.9]} 28... Kc6 {[%clk 0:00:25.8]} 29.
cxb4 {[%clk 0:02:01.7]} 29... Nb2+ {[%clk 0:00:23.1]} 30. Ke3 {[%clk 0:02:01]}
30... Rc3+ {[%clk 0:00:21.8]} 31. Nxc3 {[%clk 0:01:58.4]} 1-0

[Event "*** Titled Tuesday Blitz"]
[Site "Chess.com"]
[Date "2020.04.21"]
[Round "3"]
[White "djano"]
[Black "CzechmVIII"]
[Result "1-0"]
[WhiteElo "2462"]
[BlackElo "2220"]
[TimeControl "180+1"]
[EndTime "10:26:38 PDT"]
[Termination "djano won by resignation"]

1. Nf3 {[%clk 0:03:00.9]} 1... c5 {[%clk 0:02:59.1]} 2. c4 {[%clk 0:03:00.7]}
2... Nf6 {[%clk 0:02:58.4]} 3. g3 {[%clk 0:02:59.2]} 3... b6 {[%clk 0:02:58.4]}
4. Bg2 {[%clk 0:02:59.1]} 4... Bb7 {[%clk 0:02:58.9]} 5. O-O {[%clk 0:02:59.7]}
5... e6 {[%clk 0:02:59]} 6. d4 {[%clk 0:02:58.8]} 6... cxd4 {[%clk 0:02:56.8]}
7. Qxd4 {[%clk 0:02:59.7]} 7... d6 {[%clk 0:02:55.2]} 8. b3 {[%clk 0:02:57.6]}
8... Be7 {[%clk 0:02:46.6]} 9. Rd1 {[%clk 0:02:57.1]} 9... Nbd7 {[%clk
0:02:36.7]} 10. Nc3 {[%clk 0:02:56.1]} 10... O-O {[%clk 0:02:33.6]} 11. Nb5
{[%clk 0:02:56.2]} 11... d5 {[%clk 0:02:19.2]} 12. Bb2 {[%clk 0:02:53.1]} 12...
a6 {[%clk 0:02:01.1]} 13. Nc3 {[%clk 0:02:52]} 13... dxc4 {[%clk 0:02:00.9]} 14.
Qxc4 {[%clk 0:02:48]} 14... Rc8 {[%clk 0:01:51]} 15. Qf4 {[%clk 0:02:47.9]}
15... Qc7 {[%clk 0:01:46.9]} 16. Rac1 {[%clk 0:02:30.8]} 16... Qxf4 {[%clk
0:01:36.5]} 17. gxf4 {[%clk 0:02:31.7]} 17... Nc5 {[%clk 0:01:36.6]} 18. Ne5
{[%clk 0:02:29.2]} 18... Bxg2 {[%clk 0:01:35.2]} 19. Kxg2 {[%clk 0:02:30.1]}
19... Nfe4 {[%clk 0:01:26]} 20. Nxe4 {[%clk 0:02:22.9]} 20... Nxe4 {[%clk
0:01:26.2]} 21. Kf3 {[%clk 0:02:18.9]} 21... Rxc1 {[%clk 0:01:05.8]} 22. Rxc1
{[%clk 0:02:15.2]} 22... Nf6 {[%clk 0:01:06.2]} 23. Rc6 {[%clk 0:02:07.8]} 23...
Bc5 {[%clk 0:01:00.3]} 24. Nd3 {[%clk 0:02:07.7]} 24... h5 {[%clk 0:00:38.6]}
25. b4 {[%clk 0:02:00]} 25... Be7 {[%clk 0:00:31.9]} 26. Rxb6 {[%clk 0:01:59.6]}
26... Rc8 {[%clk 0:00:31.8]} 27. Rxa6 {[%clk 0:01:54.7]} 27... Rc2 {[%clk
0:00:31]} 28. Bxf6 {[%clk 0:01:53.5]} 28... Bxf6 {[%clk 0:00:29.4]} 29. b5
{[%clk 0:01:53.6]} 29... Kf8 {[%clk 0:00:14.4]} 30. b6 {[%clk 0:01:53.5]} 30...
Rc6 {[%clk 0:00:14.6]} 1-0

[Event "*** Titled Tuesday Blitz"]
[Site "Chess.com"]
[Date "2020.04.21"]
[Round "3"]
[White "Ceejay271"]
[Black "LifeIsAllAboutChess23"]
[Result "0-1"]
[WhiteElo "2282"]
[BlackElo "2019"]
[TimeControl "180+1"]
[EndTime "10:26:39 PDT"]
[Termination "LifeIsAllAboutChess23 won by resignation"]

1. d4 {[%clk 0:03:00.9]} 1... f5 {[%clk 0:02:57.3]} 2. Nc3 {[%clk 0:02:59.8]}
2... Nf6 {[%clk 0:02:57.5]} 3. Bg5 {[%clk 0:02:59]} 3... e6 {[%clk 0:02:57.2]}
4. e4 {[%clk 0:02:58.4]} 4... fxe4 {[%clk 0:02:55.6]} 5. Nxe4 {[%clk 0:02:59]}
5... Be7 {[%clk 0:02:56.3]} 6. Bxf6 {[%clk 0:02:58.8]} 6... Bxf6 {[%clk
0:02:56.6]} 7. Nf3 {[%clk 0:02:58.4]} 7... O-O {[%clk 0:02:56.1]} 8. Bd3 {[%clk
0:02:57]} 8... b6 {[%clk 0:02:56.4]} 9. h4 {[%clk 0:02:54]} 9... Bb7 {[%clk
0:02:56.5]} 10. c3 {[%clk 0:02:53.6]} 10... h6 {[%clk 0:02:54.6]} 11. Qc2 {[%clk
0:02:48.3]} 11... d6 {[%clk 0:02:54.9]} 12. O-O-O {[%clk 0:02:46.8]} 12... Nd7
{[%clk 0:02:54.9]} 13. Kb1 {[%clk 0:02:36.2]} 13... d5 {[%clk 0:02:49.6]} 14.
Neg5 {[%clk 0:02:32.5]} 14... hxg5 {[%clk 0:02:42.8]} 15. hxg5 {[%clk
0:02:31.3]} 15... Bxg5 {[%clk 0:02:24.5]} 16. Bh7+ {[%clk 0:02:30]} 16... Kh8
{[%clk 0:02:20.7]} 17. Nxg5 {[%clk 0:02:08.6]} 17... Qxg5 {[%clk 0:02:19.8]} 18.
Bf5+ {[%clk 0:02:07.5]} 18... Kg8 {[%clk 0:02:15.2]} 19. Bxe6+ {[%clk
0:02:06.6]} 19... Rf7 {[%clk 0:02:15.6]} 20. Qh7+ {[%clk 0:01:39.3]} 20... Kf8
{[%clk 0:02:14.5]} 21. Bxf7 {[%clk 0:00:14]} 21... Kxf7 {[%clk 0:02:12.8]} 22.
Rh3 {[%clk 0:00:09.1]} 22... Nf6 {[%clk 0:02:08.8]} 23. Qd3 {[%clk 0:00:06.1]}
23... Bc8 {[%clk 0:02:08.1]} 24. Rg3 {[%clk 0:00:05.9]} 24... Qh5 {[%clk
0:02:06.4]} 25. Re1 {[%clk 0:00:05.2]} 25... Bf5 {[%clk 0:02:06]} 0-1

[Event "*** Titled Tuesday Blitz"]
[Site "Chess.com"]
[Date "2020.04.21"]
[Round "3"]
[White "Sanan_Sjugirov"]
[Black "ama18"]
[Result "1-0"]
[WhiteElo "2844"]
[BlackElo "2468"]
[TimeControl "180+1"]
[EndTime "10:26:40 PDT"]
[Termination "Sanan_Sjugirov won on time"]

1. e4 {[%clk 0:03:00.9]} 1... c5 {[%clk 0:02:58.8]} 2. Nf3 {[%clk 0:03:01.2]}
2... d6 {[%clk 0:02:59]} 3. Bb5+ {[%clk 0:03:01.1]} 3... Bd7 {[%clk 0:02:58.9]}
4. Bxd7+ {[%clk 0:03:01.1]} 4... Qxd7 {[%clk 0:02:59.8]} 5. O-O {[%clk
0:02:59.8]} 5... Nf6 {[%clk 0:02:59.8]} 6. d4 {[%clk 0:02:58.3]} 6... cxd4
{[%clk 0:02:56.9]} 7. Qxd4 {[%clk 0:02:59.2]} 7... Nc6 {[%clk 0:02:56.7]} 8. Qd3
{[%clk 0:02:59.5]} 8... g6 {[%clk 0:02:56.3]} 9. c4 {[%clk 0:02:59.7]} 9... Bg7
{[%clk 0:02:56.3]} 10. Nc3 {[%clk 0:03:00.3]} 10... O-O {[%clk 0:02:56.4]} 11.
h3 {[%clk 0:03:00.7]} 11... Rfc8 {[%clk 0:02:22.7]} 12. Rb1 {[%clk 0:02:57.8]}
12... Qd8 {[%clk 0:02:03.2]} 13. b3 {[%clk 0:02:56.4]} 13... Nd7 {[%clk
0:02:02.7]} 14. Bb2 {[%clk 0:02:55.2]} 14... Nc5 {[%clk 0:01:55.1]} 15. Qe2
{[%clk 0:02:54.5]} 15... Ne6 {[%clk 0:01:54.7]} 16. Rfd1 {[%clk 0:02:52.7]}
16... a6 {[%clk 0:01:27.2]} 17. Nd5 {[%clk 0:02:52.2]} 17... Bxb2 {[%clk
0:01:23.9]} 18. Qxb2 {[%clk 0:02:53.1]} 18... b5 {[%clk 0:01:22.9]} 19. Rbc1
{[%clk 0:02:49.4]} 19... bxc4 {[%clk 0:01:22.2]} 20. Rxc4 {[%clk 0:02:50.3]}
20... f6 {[%clk 0:01:14.5]} 21. Rdc1 {[%clk 0:02:49.2]} 21... Na7 {[%clk
0:01:07.1]} 22. Nd4 {[%clk 0:02:47.4]} 22... Rxc4 {[%clk 0:00:58.4]} 23. Rxc4
{[%clk 0:02:46.7]} 23... Nxd4 {[%clk 0:00:49]} 24. Qxd4 {[%clk 0:02:47.6]} 24...
Nb5 {[%clk 0:00:42.1]} 25. Qd2 {[%clk 0:02:44.1]} 25... e6 {[%clk 0:00:30.4]}
26. a4 {[%clk 0:02:38.9]} 26... Na3 {[%clk 0:00:26.4]} 27. Rc7 {[%clk
0:02:27.8]} 27... Qf8 {[%clk 0:00:04.6]} 28. Ne7+ {[%clk 0:02:20.2]} 28... Kh8
{[%clk 0:00:04.1]} 29. Qxd6 {[%clk 0:02:19.7]} 29... Nb1 {[%clk 0:00:02.8]} 30.
Qd7 {[%clk 0:02:14]} 30... Qg7 {[%clk 0:00:01.1]} 31. Rc8+ {[%clk 0:02:12.7]}
1-0

[Event "*** Titled Tuesday Blitz"]
[Site "Chess.com"]
[Date "2020.04.21"]
[Round "3"]
[White "r31415"]
[Black "kungmongmanh"]
[Result "0-1"]
[WhiteElo "2370"]
[BlackElo "2590"]
[TimeControl "180+1"]
[EndTime "10:26:51 PDT"]
[Termination "kungmongmanh won by resignation"]

1. e4 {[%clk 0:03:00.9]} 1... e6 {[%clk 0:02:51.2]} 2. d4 {[%clk 0:03:00.2]}
2... d5 {[%clk 0:02:51.4]} 3. Nc3 {[%clk 0:03:00.7]} 3... Nf6 {[%clk 0:02:51.6]}
4. e5 {[%clk 0:03:01]} 4... Nfd7 {[%clk 0:02:51.8]} 5. f4 {[%clk 0:03:01.7]}
5... c5 {[%clk 0:02:52.2]} 6. Nf3 {[%clk 0:03:02.6]} 6... Be7 {[%clk 0:02:52.8]}
7. Be3 {[%clk 0:03:02.5]} 7... Nc6 {[%clk 0:02:53.4]} 8. dxc5 {[%clk 0:03:01.1]}
8... Bxc5 {[%clk 0:02:41.8]} 9. Qd2 {[%clk 0:02:52.2]} 9... a6 {[%clk
0:02:41.7]} 10. O-O-O {[%clk 0:02:51.2]} 10... b5 {[%clk 0:02:40.9]} 11. Kb1
{[%clk 0:02:16.5]} 11... Qb6 {[%clk 0:02:38]} 12. Bxc5 {[%clk 0:02:07]} 12...
Nxc5 {[%clk 0:02:36.9]} 13. Bd3 {[%clk 0:02:02.7]} 13... b4 {[%clk 0:02:32.3]}
14. Ne2 {[%clk 0:02:02]} 14... a5 {[%clk 0:02:30.7]} 15. g4 {[%clk 0:01:49.1]}
15... a4 {[%clk 0:02:29]} 16. Ng3 {[%clk 0:01:45.1]} 16... b3 {[%clk 0:02:29]}
17. a3 {[%clk 0:01:34.6]} 17... bxc2+ {[%clk 0:02:25.8]} 18. Bxc2 {[%clk
0:01:34.1]} 18... Rb8 {[%clk 0:02:19.6]} 19. Qc1 {[%clk 0:01:28.8]} 19... Na5
{[%clk 0:02:16.5]} 20. Nd2 {[%clk 0:00:53.8]} 20... Ba6 {[%clk 0:02:10.5]} 21.
Nh5 {[%clk 0:00:43.3]} 21... O-O {[%clk 0:02:07.6]} 22. h4 {[%clk 0:00:39.6]}
22... Bd3 {[%clk 0:02:04.2]} 23. Rh3 {[%clk 0:00:29.7]} 23... Rfc8 {[%clk
0:01:52]} 24. Rdh1 {[%clk 0:00:19.1]} 24... Bxc2+ {[%clk 0:01:37.9]} 25. Qxc2
{[%clk 0:00:18.8]} 25... Nd3 {[%clk 0:01:38.1]} 26. Nc4 {[%clk 0:00:07.7]} 0-1

[Event "*** Titled Tuesday Blitz"]
[Site "Chess.com"]
[Date "2020.04.21"]
[Round "3"]
[White "cassoulet"]
[Black "zajka-molotok"]
[Result "1-0"]
[WhiteElo "2649"]
[BlackElo "2415"]
[TimeControl "180+1"]
[EndTime "10:26:55 PDT"]
[Termination "cassoulet won by resignation"]

1. e4 {[%clk 0:03:00.9]} 1... e6 {[%clk 0:02:59.1]} 2. d4 {[%clk 0:03:00.3]}
2... d5 {[%clk 0:02:59.1]} 3. Bd3 {[%clk 0:02:59.9]} 3... dxe4 {[%clk
0:02:58.6]} 4. Bxe4 {[%clk 0:03:00.8]} 4... Nf6 {[%clk 0:02:58.6]} 5. Bf3 {[%clk
0:03:01.1]} 5... Nbd7 {[%clk 0:02:57.1]} 6. Nc3 {[%clk 0:02:58.4]} 6... Bd6
{[%clk 0:02:51.6]} 7. Nge2 {[%clk 0:02:57]} 7... e5 {[%clk 0:02:48.6]} 8. O-O
{[%clk 0:02:54.6]} 8... O-O {[%clk 0:02:47]} 9. Bg5 {[%clk 0:02:53.6]} 9... h6
{[%clk 0:02:44.5]} 10. Bh4 {[%clk 0:02:53.4]} 10... c6 {[%clk 0:02:37.6]} 11. d5
{[%clk 0:02:45.5]} 11... cxd5 {[%clk 0:02:05.4]} 12. Nxd5 {[%clk 0:02:31.1]}
12... e4 {[%clk 0:01:44]} 13. Bxe4 {[%clk 0:02:30.8]} 13... g5 {[%clk
0:01:43.6]} 14. Ndc3 {[%clk 0:02:29.5]} 14... Bxh2+ {[%clk 0:01:29.1]} 15. Kxh2
{[%clk 0:02:27.8]} 15... gxh4 {[%clk 0:01:28.9]} 16. Qd6 {[%clk 0:02:11.2]}
16... Qe8 {[%clk 0:01:12.5]} 17. Qf4 {[%clk 0:01:40.9]} 17... Qe5 {[%clk
0:01:01.3]} 18. Rad1 {[%clk 0:01:37.8]} 18... Qxf4+ {[%clk 0:00:53.2]} 19. Nxf4
{[%clk 0:01:38.7]} 19... Nxe4 {[%clk 0:00:49.9]} 20. Nxe4 {[%clk 0:01:39.6]}
20... Ne5 {[%clk 0:00:48.1]} 21. Rfe1 {[%clk 0:01:20.3]} 21... Bg4 {[%clk
0:00:46.1]} 22. Nf6+ {[%clk 0:01:11.7]} 22... Kg7 {[%clk 0:00:44.6]} 23. N6h5+
{[%clk 0:01:07.7]} 23... Bxh5 {[%clk 0:00:39.5]} 24. Nxh5+ {[%clk 0:01:08.6]}
24... Kg6 {[%clk 0:00:38]} 25. Rxe5 {[%clk 0:01:08.5]} 25... f6 {[%clk
0:00:37.9]} 26. Nf4+ {[%clk 0:01:06.4]} 1-0

[Event "*** Titled Tuesday Blitz"]
[Site "Chess.com"]
[Date "2020.04.21"]
[Round "3"]
[White "Igrok3069"]
[Black "Megagigahiper3345"]
[Result "1-0"]
[WhiteElo "2781"]
[BlackElo "2569"]
[TimeControl "180+1"]
[EndTime "10:26:56 PDT"]
[Termination "Igrok3069 won by resignation"]

1. d4 {[%clk 0:03:00.9]} 1... f5 {[%clk 0:02:51.6]} 2. c4 {[%clk 0:02:58.8]}
2... Nf6 {[%clk 0:02:50.8]} 3. Nc3 {[%clk 0:02:59]} 3... e6 {[%clk 0:02:51.2]}
4. e3 {[%clk 0:02:57.2]} 4... b6 {[%clk 0:02:50.9]} 5. Bd3 {[%clk 0:02:50.1]}
5... Bb7 {[%clk 0:02:50.3]} 6. f3 {[%clk 0:02:50.6]} 6... Bb4 {[%clk 0:02:49.4]}
7. Ne2 {[%clk 0:02:50.5]} 7... c5 {[%clk 0:02:49]} 8. O-O {[%clk 0:02:47.7]}
8... O-O {[%clk 0:02:49]} 9. a3 {[%clk 0:02:47.5]} 9... cxd4 {[%clk 0:02:49]}
10. axb4 {[%clk 0:02:44.9]} 10... dxc3 {[%clk 0:02:49.1]} 11. Nxc3 {[%clk
0:02:45.8]} 11... Nc6 {[%clk 0:02:47.1]} 12. b5 {[%clk 0:02:43.4]} 12... Ne5
{[%clk 0:02:42.8]} 13. Be2 {[%clk 0:02:43.3]} 13... Qc7 {[%clk 0:02:32.2]} 14.
Qd4 {[%clk 0:02:13.3]} 14... Rfc8 {[%clk 0:02:24.2]} 15. Ra4 {[%clk 0:01:55.5]}
15... Nf7 {[%clk 0:01:34.3]} 16. Rd1 {[%clk 0:01:52.8]} 16... d6 {[%clk
0:01:19.5]} 17. Bd2 {[%clk 0:01:51]} 17... Nd7 {[%clk 0:01:04.5]} 18. Be1 {[%clk
0:01:47.2]} 18... Nc5 {[%clk 0:01:02]} 19. Ra3 {[%clk 0:01:46.9]} 19... e5
{[%clk 0:00:56.6]} 20. Qd2 {[%clk 0:01:42.9]} 20... a5 {[%clk 0:00:44.7]} 21.
bxa6 {[%clk 0:01:37.9]} 21... Bxa6 {[%clk 0:00:42.8]} 22. Nd5 {[%clk 0:01:37]}
22... Qb7 {[%clk 0:00:39.5]} 23. b4 {[%clk 0:01:33.9]} 23... Bxc4 {[%clk
0:00:17.3]} 24. Rxa8 {[%clk 0:01:29.7]} 24... Rxa8 {[%clk 0:00:15.9]} 25. Bxc4
{[%clk 0:01:28.1]} 25... Ne6 {[%clk 0:00:16]} 26. Nxb6 {[%clk 0:01:26.2]} 1-0

[Event "*** Titled Tuesday Blitz"]
[Site "Chess.com"]
[Date "2020.04.21"]
[Round "3"]
[White "Izoria123"]
[Black "Rud_Makarian"]
[Result "0-1"]
[WhiteElo "2787"]
[BlackElo "2633"]
[TimeControl "180+1"]
[EndTime "10:26:58 PDT"]
[Termination "Rud_Makarian won by resignation"]

1. Nf3 {[%clk 0:03:00.9]} 1... g6 {[%clk 0:02:59.1]} 2. e4 {[%clk 0:03:00.4]}
2... d6 {[%clk 0:02:58.3]} 3. d4 {[%clk 0:03:00.9]} 3... Nf6 {[%clk 0:02:58.4]}
4. Bd3 {[%clk 0:02:57.8]} 4... Bg7 {[%clk 0:02:58.5]} 5. O-O {[%clk 0:02:58.4]}
5... O-O {[%clk 0:02:58.7]} 6. c3 {[%clk 0:02:54.3]} 6... Nc6 {[%clk 0:02:58.2]}
7. d5 {[%clk 0:02:51.5]} 7... Nb8 {[%clk 0:02:52.9]} 8. c4 {[%clk 0:02:51]} 8...
Nbd7 {[%clk 0:02:52.7]} 9. Nc3 {[%clk 0:02:49.9]} 9... Nc5 {[%clk 0:02:53]} 10.
Bc2 {[%clk 0:02:49.5]} 10... a5 {[%clk 0:02:53.5]} 11. Be3 {[%clk 0:02:44.4]}
11... e6 {[%clk 0:02:51.6]} 12. Qd2 {[%clk 0:02:19.9]} 12... exd5 {[%clk
0:02:50.8]} 13. exd5 {[%clk 0:02:18.1]} 13... Nfd7 {[%clk 0:02:43.9]} 14. Bd4
{[%clk 0:02:14.3]} 14... Nb6 {[%clk 0:02:37.6]} 15. b3 {[%clk 0:02:13.6]} 15...
Bd7 {[%clk 0:02:28]} 16. Rae1 {[%clk 0:02:07]} 16... Re8 {[%clk 0:02:25]} 17.
Ng5 {[%clk 0:02:03.2]} 17... Bxd4 {[%clk 0:02:23]} 18. Rxe8+ {[%clk 0:01:49.9]}
18... Bxe8 {[%clk 0:02:22.8]} 19. Qxd4 {[%clk 0:01:41.8]} 19... Qxg5 {[%clk
0:02:22.1]} 20. f4 {[%clk 0:01:42.7]} 20... Qe7 {[%clk 0:02:20.8]} 21. f5 {[%clk
0:01:43]} 21... Qe5 {[%clk 0:02:20.4]} 22. Qd2 {[%clk 0:01:43.1]} 22... Bd7
{[%clk 0:02:18.9]} 23. f6 {[%clk 0:00:49]} 23... Re8 {[%clk 0:02:17.2]} 24. Nd1
{[%clk 0:00:49.1]} 24... h5 {[%clk 0:01:58.2]} 25. Qh6 {[%clk 0:00:42.8]} 25...
Qd4+ {[%clk 0:01:58.4]} 26. Nf2 {[%clk 0:00:09.3]} 26... Qxf6 {[%clk 0:01:58.6]}
27. Ng4 {[%clk 0:00:08.3]} 27... Qd4+ {[%clk 0:01:54.9]} 28. Kh1 {[%clk
0:00:08.9]} 28... hxg4 {[%clk 0:01:45.9]} 29. Bxg6 {[%clk 0:00:06.8]} 29... fxg6
{[%clk 0:01:46.8]} 0-1

[Event "*** Titled Tuesday Blitz"]
[Site "Chess.com"]
[Date "2020.04.21"]
[Round "3"]
[White "vladimirdamjanovic"]
[Black "Igor_Lysyj"]
[Result "1/2-1/2"]
[WhiteElo "2631"]
[BlackElo "2805"]
[TimeControl "180+1"]
[EndTime "10:26:59 PDT"]
[Termination "Game drawn by agreement"]

1. d4 {[%clk 0:03:00.2]} 1... d5 {[%clk 0:02:58.1]} 2. c4 {[%clk 0:02:57.1]}
2... e6 {[%clk 0:02:57.5]} 3. Nc3 {[%clk 0:02:57.2]} 3... dxc4 {[%clk 0:02:57]}
4. e3 {[%clk 0:02:55.1]} 4... Nf6 {[%clk 0:02:55.6]} 5. Bxc4 {[%clk 0:02:51.7]}
5... a6 {[%clk 0:02:55.7]} 6. Nf3 {[%clk 0:02:29.7]} 6... b5 {[%clk 0:02:55.1]}
7. Be2 {[%clk 0:02:28.2]} 7... Bb7 {[%clk 0:02:54.6]} 8. O-O {[%clk 0:02:28.8]}
8... Nbd7 {[%clk 0:02:51.8]} 9. b3 {[%clk 0:02:27.4]} 9... Be7 {[%clk
0:02:49.5]} 10. Bb2 {[%clk 0:02:25.2]} 10... O-O {[%clk 0:02:49.2]} 11. Rc1
{[%clk 0:02:20.3]} 11... c5 {[%clk 0:02:47.4]} 12. dxc5 {[%clk 0:02:21.2]} 12...
Nxc5 {[%clk 0:02:47.2]} 13. Qxd8 {[%clk 0:02:07.6]} 13... Rfxd8 {[%clk
0:02:45.9]} 14. Rfd1 {[%clk 0:02:08.5]} 14... Kf8 {[%clk 0:02:43.4]} 15. Ne5
{[%clk 0:02:01.8]} 15... Rxd1+ {[%clk 0:02:32.5]} 16. Rxd1 {[%clk 0:02:01.6]}
16... Rc8 {[%clk 0:02:29.4]} 17. f3 {[%clk 0:01:54.9]} 17... Ke8 {[%clk
0:02:23.4]} 18. Kf2 {[%clk 0:01:53.8]} 18... Nd5 {[%clk 0:02:06.3]} 19. Nxd5
{[%clk 0:01:50.5]} 19... Bxd5 {[%clk 0:02:05.7]} 20. Nd3 {[%clk 0:01:48.6]}
20... f6 {[%clk 0:01:55.1]} 21. Nxc5 {[%clk 0:01:43.5]} 21... Bxc5 {[%clk
0:01:49]} 22. Bd3 {[%clk 0:01:43.5]} 22... h6 {[%clk 0:01:43.3]} 23. Ke2 {[%clk
0:01:43.4]} 23... Bd6 {[%clk 0:01:38.6]} 24. h3 {[%clk 0:01:36.3]} 24... Ke7
{[%clk 0:01:38.1]} 25. Rc1 {[%clk 0:01:36.2]} 25... Rxc1 {[%clk 0:01:34.7]} 26.
Bxc1 {[%clk 0:01:37.1]} 26... f5 {[%clk 0:01:31.6]} 27. g4 {[%clk 0:01:34.5]}
27... Kf6 {[%clk 0:01:21]} 28. e4 {[%clk 0:01:33.3]} 28... fxe4 {[%clk
0:01:19.7]} 29. Bxe4 {[%clk 0:01:33.8]} 29... Bxe4 {[%clk 0:01:17]} 30. fxe4
{[%clk 0:01:34.7]} 30... Be5 {[%clk 0:01:01.5]} 31. Kf3 {[%clk 0:01:30.9]} 31...
Ke7 {[%clk 0:00:57.4]} 32. Ba3+ {[%clk 0:01:30.1]} 32... Kf7 {[%clk 0:00:55.2]}
33. Bc5 {[%clk 0:01:26]} 33... g6 {[%clk 0:00:54.5]} 34. Bb4 {[%clk 0:01:25.7]}
34... h5 {[%clk 0:00:53.4]} 35. Bc5 {[%clk 0:01:24.1]} 35... Bc7 {[%clk
0:00:49.6]} 36. Bb4 {[%clk 0:01:21.9]} 36... Be5 {[%clk 0:00:46.6]} 1/2-1/2

[Event "*** Titled Tuesday Blitz"]
[Site "Chess.com"]
[Date "2020.04.21"]
[Round "3"]
[White "Cecile-Haussernot"]
[Black "flomarechot"]
[Result "1-0"]
[WhiteElo "2353"]
[BlackElo "2104"]
[TimeControl "180+1"]
[EndTime "10:26:59 PDT"]
[Termination "Cecile-Haussernot won by resignation"]

1. e4 {[%clk 0:02:57.9]} 1... e6 {[%clk 0:02:58.6]} 2. d4 {[%clk 0:02:57.6]}
2... d5 {[%clk 0:02:59.5]} 3. Nc3 {[%clk 0:02:57.1]} 3... dxe4 {[%clk
0:02:59.5]} 4. Nxe4 {[%clk 0:02:57.1]} 4... Bd7 {[%clk 0:03:00.4]} 5. Bd3 {[%clk
0:02:56.4]} 5... Bc6 {[%clk 0:03:00.6]} 6. c3 {[%clk 0:02:56.2]} 6... Nd7 {[%clk
0:02:59.2]} 7. Ne2 {[%clk 0:02:55.9]} 7... Ngf6 {[%clk 0:02:59.3]} 8. Qc2 {[%clk
0:02:55.6]} 8... Nxe4 {[%clk 0:02:58.8]} 9. Bxe4 {[%clk 0:02:55.5]} 9... Bxe4
{[%clk 0:02:59.5]} 10. Qxe4 {[%clk 0:02:55.6]} 10... c6 {[%clk 0:03:00.2]} 11.
O-O {[%clk 0:02:55.1]} 11... Nf6 {[%clk 0:03:00.5]} 12. Qf3 {[%clk 0:02:55]}
12... Qd5 {[%clk 0:03:00.3]} 13. Qg3 {[%clk 0:02:51.8]} 13... Ne4 {[%clk
0:02:39.7]} 14. Qd3 {[%clk 0:02:43.6]} 14... Be7 {[%clk 0:02:21.8]} 15. Nf4
{[%clk 0:02:39.5]} 15... Qf5 {[%clk 0:02:21.8]} 16. Qf3 {[%clk 0:02:30.5]} 16...
Nd6 {[%clk 0:02:09.8]} 17. Re1 {[%clk 0:02:07.7]} 17... g5 {[%clk 0:02:05.8]}
18. Re5 {[%clk 0:02:01.8]} 18... Qc2 {[%clk 0:01:46.9]} 19. Nh5 {[%clk
0:01:54.7]} 19... O-O-O {[%clk 0:01:33.7]} 20. Bxg5 {[%clk 0:01:48.5]} 20...
Bxg5 {[%clk 0:01:30.1]} 21. Rxg5 {[%clk 0:01:46.9]} 21... Qxb2 {[%clk
0:01:30.5]} 22. Rf1 {[%clk 0:01:43.9]} 22... Rhg8 {[%clk 0:01:15.4]} 23. Rc5
{[%clk 0:01:42.8]} 23... Qb6 {[%clk 0:00:55]} 24. Nf6 {[%clk 0:01:41]} 24... Rg6
{[%clk 0:00:55.3]} 25. Ng4 {[%clk 0:01:38.4]} 25... Qc7 {[%clk 0:00:50.2]} 26.
Ne5 {[%clk 0:01:36.9]} 26... Rg7 {[%clk 0:00:50.5]} 27. Nxc6 {[%clk 0:01:36.3]}
27... Kd7 {[%clk 0:00:31.8]} 28. Ne5+ {[%clk 0:01:31]} 28... Kc8 {[%clk
0:00:31.8]} 29. Rxc7+ {[%clk 0:01:31.3]} 29... Kxc7 {[%clk 0:00:32.7]} 30. Qf6
{[%clk 0:01:30.9]} 30... Rdg8 {[%clk 0:00:32.3]} 31. Qe7+ {[%clk 0:01:30.5]}
31... Kc8 {[%clk 0:00:25.4]} 32. Qd7+ {[%clk 0:01:29.4]} 1-0